Workbook

Sheet VALES DESPENSA
B2: CÁLCULO DE EXENCIÓN DE VALES DE DESPENSA
B4: Introducción
B5: El salario base de cotización (SBC) se integra con los pagos hechos en efectivo por cuota diaria, gratificaciones, percepciones, alimentación, habitación, primas, comisiones, prestaciones en especie y cualquier otra cantidad o prestación que se entregue al trabajador por su trabajo.
B6: Entre los conceptos que se excluyen como integrantes del SBC se encuentra la despensa siempre y cuando no rebase el 40% del valor de la Unidad de Medida y Actualización (UMA)
B8: Precisiones
B9: La despensa es un concepto variable, debido al numero de los días del mes en que se entrega
B10: Al ser un ingreso variable debe reportarse en los primeros cinco días hábiles de Enero, Marzo, Mayo, Julio, Septiembre y Noviembre de cada año
B11: es viable llevar a cabo su calculo mensual considerando el valor de la UMA vigente al momento en que el trabajador recibió la prestaciones que se trate
B13: Practica - Datos
B14: Salario Mensual | C14: 30,000.00
B15: Vales Despensa | C15: 3,000.00
B16: Aguinaldo | C16: 30 | D16: días
B17: Vacaciones | C17: 14 | D17: días
B18: Prima vacacional | C18: 35%
B21: Primer paso | C21: Determinación del SBC Fijo
B23: Salario Diario
B25: Salario Mensual | C25: =+C14 -> 30,000.00
A26: Entre (/) | B26: Treinta | C26: 30
A27: Igual (=) | B27: Salario Diario | C27: =+C25/C26 -> 1,000.00
B30: Parte proporcional diaria de aguinaldo
B32: Días de aguinaldo | C32: =+C16 -> 30
A33: Entre (/) | B33: Días del Año | C33: 365
A34: Igual (=) | B34: Parte proporcional diaria de Aguinaldo | C34: =+C32/C33 -> 0.0822
B37: Parte proporcional diaria de Prima Vacacional
B39: Días de Vacaciones | C39: =+C17 -> 14
A40: Por (x) | B40: Porcentaje de Prima Vacacional | C40: =+C18 -> 35%
A41: Igual (=) | B41: Subtotal | C41: =+C39*C40 -> 4.9
A42: Entre (/) | B42: Días del Año | C42: 365
A43: Igual (=) | B43: Parte proporcional diaria de Prima Vacacional | C43: =+C41/C42 -> 0.0134
B46: Factor de integración salarial
B48: Unidad | C48: 1
A49: Mas (+) | B49: Parte proporcional diaria de Aguinaldo | C49: =+C34 -> 0.0822
A50: Mas (+) | B50: Parte proporcional diaria de Prima Vacacional | C50: =+C43 -> 0.0134
A51: Igual (=) | B51: Factor de Integración | C51: =+C48+C49+D51 -> 1.0822
B54: SBC Fijo
B56: Salario Diario | C56: =+C27 -> 1,000.00
A57: Por (x) | B57: Factor de Integración | C57: =+C51 -> 1.0822
A58: Igual (=) | B58: SBC Fijo | C58: =+C56*C57 -> 1,082.19
B61: Segundo paso | C61: Determinación de la Parte Variable
B63: Determinación de la Parte Variable por mes | C63: Enero | D63: Febrero
B65: Valor de la UMA | C65: 84.49 | D65: 86.88
A66: Entre (/) | B66: Porcentaje de exención | C66: 40% | D66: 40%
A67: Igual (=) | B67: Importe de la exención | C67: =+C65*C66 -> 33.80 | D67: =+D65*D66 -> 34.75
A68: Por (x) | B68: días de salario devengado en el mes | C68: 31 | D68: 28
A69: Igual (=) | B69: Importe exento vales despensa | C69: =+C67*C68 -> 1,047.68 | D69: =+D67*D68 -> 973.06
A70: Menos (-) | B70: Importe vales despensa otorgado | C70: =+C15 -> 3,000.00 | D70: =+C15 -> 3,000.00
A71: Igual (=) | B71: Excedente a integrar al SBC de vales despensa | C71: =+C70-C69 -> 1,952.32 | D71: =+D70-D69 -> 2,026.94
B73: Cantidad diaria de la Parte Variable
B75: Excedente a integrar al SBC de Enero | C75: =+C71 -> 1,952.32
A76: Mas (+) | B76: Excedente a integrar al SBC de Febrero | C76: =+D71 -> 2,026.94
A77: Igual (=) | B77: Total excedente a integrar en el Bimestre | C77: =+C75+C76 -> 3,979.27
A78: Entre (/) | B78: Días del Bimestre (Ene-Feb) | C78: =+C68+D68 -> 59
A79: Igual (=) | B79: Importe a integrar al SBC Parte Variable | C79: =+C77/C78 -> 67.45
B82: Determinación del SBC a reportar
B84: SBC parte Fija | C84: =+C58 -> 1,082.19
A85: Mas (+) | B85: SBC parte Variable | C85: =+C79 -> 67.45
A86: Igual (=) | B86: SBC a reportar | C86: =+C84+C85 -> 1,149.64
B89: Fundamento Legal
B91: Art. 27 VI Ley del Seguro Social
